fUST/lending_fUST_20250928
["ID","MTS","AMOUNT","RATE_DAILY","PERIOD"]
[388305638,1759068653389,-480.0,0.0003589,9]
[388305639,1759068653399,-480.0,0.0003589,9]
[388305640,1759068653408,-480.0,0.0003589,9]
[388305641,1759068653418,-4550.13,0.0003589,9]
[388305642,1759068653427,-151.0,0.0003589,30]
[388305643,1759068653436,-822.61,0.0003589,9]
[388305644,1759068653446,-480.0,0.0003589,9]
[388305645,1759068653455,-1355.51,0.0003589,9]
[388305646,1759068653465,-151.0,0.0003589,30]
[388305647,1759068653474,-480.0,0.0003589,9]
[388305648,1759068653483,-480.0,0.0003589,9]
[388305649,1759068653492,-748.06,0.0003589,9]
[388305650,1759068653501,-480.0,0.0003589,9]
[388305651,1759068653512,-480.0,0.0003589,9]
[388305652,1759068653521,-480.0,0.0003589,9]
[388305653,1759068653531,-1247.62,0.0003589,9]
[388305654,1759068653541,-480.0,0.0003589,7]
[388305655,1759068653550,-1295.05,0.0003589,9]
[388305656,1759068653560,-524.7,0.0003589,9]
[388305657,1759068653570,-646.9,0.0003589,9]
[388305658,1759068653579,-6149.46,0.0003589,9]
[388305659,1759068653592,-649.02,0.0003589,9]
[388305660,1759068653602,-480.0,0.0003589,9]
[388305661,1759068653611,-674.87,0.0003589,9]
[388305662,1759068653620,-1066.65,0.0003589,9]
[388305663,1759068653631,-3244.73,0.0003589,9]
[388305664,1759068653641,-688.02,0.0003589,9]
[388305665,1759068653650,-1372.82,0.0003589,9]
[388305666,1759068653659,-1154.48,0.0003589,9]
[388305667,1759068653671,-480.0,0.0003589,9]
[388305668,1759068653680,-2424.55,0.0003589,9]
[388305669,1759068653690,-1039.76,0.0003589,9]
[388305670,1759068653699,-480.0,0.0003589,9]
[388305671,1759068653708,-2399.65,0.0003589,9]
[388305672,1759068653717,-480.0,0.0003589,9]
[388305673,1759068653726,-1083.19,0.0003589,9]
[388305674,1759068653737,-480.0,0.0003589,9]
[388305675,1759068653747,-1246.35,0.0003589,9]
[388305676,1759068653756,-2936.2,0.0003589,9]
[388305677,1759068653766,-1554.9,0.0003589,9]
[388305678,1759068653776,-829.45,0.0003589,9]
[388305679,1759068653785,-501.96,0.0003589,9]
[388305680,1759068653795,-4572.54,0.0003589,9]
[388305681,1759068653804,-480.0,0.0003589,9]
[388305682,1759068653814,-773.93,0.0003589,9]
[388305683,1759068653823,-480.0,0.0003589,9]
[388305684,1759068653833,-1335.65,0.0003589,9]
[388305685,1759068653842,-480.0,0.0003589,9]
[388305686,1759068653851,-480.0,0.0003589,9]
[388305687,1759068653861,-480.0,0.0003589,9]
[388305688,1759068653870,-151.0,0.0003589,30]
[388305689,1759068653879,-228.854231,0.0003589,30]
[388305690,1759068653889,-696.72,0.0003589,9]
[388305691,1759068653898,-480.0,0.0003589,9]
[388305692,1759068653908,-480.0,0.0003589,9]
[388305693,1759068653917,-9730.87,0.0003589,9]
[388305694,1759068653927,-2754.5,0.0003589,9]
[388305695,1759068653936,-835.68,0.0003589,9]
[388305696,1759068653945,-631.39,0.0003589,9]
[388305697,1759068653955,-480.0,0.0003589,9]
[388305698,1759068653964,-480.0,0.0003589,9]
[388305699,1759068653974,-480.0,0.0003589,9]
[388305700,1759068653984,-480.0,0.0003589,9]
[388305701,1759068653994,-1864.81,0.0003589,9]
[388305702,1759068654003,-1802.9,0.0003589,9]
[388305703,1759068654012,-151.0,0.0003589,30]
[388305704,1759068654022,-151.0,0.0003589,30]
[388305705,1759068654031,-480.0,0.0003589,9]
[388305706,1759068654041,-712.34,0.0003589,9]
[388305707,1759068654050,-874.19,0.0003589,9]
[388305708,1759068654060,-659.59,0.0003589,9]
[388305709,1759068654071,-993.2,0.0003589,9]
[388305710,1759068654080,-5121.88,0.0003589,9]
[388305711,1759068654089,-480.0,0.0003589,9]
[388305712,1759068654099,-565.3507955,0.0003589,9]
[388305713,1759068654109,-480.0,0.0003589,9]
[388305714,1759068654119,-480.0,0.0003589,9]
[388305715,1759068654129,-1482.23,0.0003589,9]
[388305716,1759068654139,-480.0,0.0003589,9]
[388305717,1759068654148,-480.0,0.0003589,9]
[388305718,1759068654158,-722.48,0.0003589,9]
[388305719,1759068654168,-5174.09,0.0003589,9]
[388305720,1759068654178,-1892.82,0.0003589,9]
[388305721,1759068654187,-151.0,0.0003589,30]
[388305722,1759068654198,-1028.73,0.0003589,9]
[388305723,1759068654207,-480.0,0.0003589,9]
[388305724,1759068654217,-480.0,0.0003589,9]
[388305725,1759068654228,-480.0,0.0003589,9]
[388305726,1759068654237,-151.0,0.0003589,30]
[388305727,1759068654246,-151.0,0.0003589,30]
[388305728,1759068654256,-151.0,0.0003589,30]
[388305729,1759068654265,-480.0,0.0003589,9]
[388305730,1759068654275,-480.0,0.0003589,9]
[388305731,1759068654284,-480.0,0.0003589,9]
[388305732,1759068654294,-480.0,0.0003589,9]
[388305733,1759068654303,-670.17,0.0003589,9]
[388305734,1759068654313,-1199.0,0.0003589,9]
[388305735,1759068654323,-958.01,0.0003589,9]
[388305736,1759068654332,-854.57,0.0003589,9]
[388305737,1759068654341,-1000.0,0.0003589,9]
[388305738,1759068654350,-480.0,0.0003589,9]
[388305739,1759068654360,-480.0,0.0003589,9]
[388305740,1759068654369,-480.0,0.0003589,9]
[388305741,1759068654378,-1226.05,0.0003589,9]
[388305742,1759068654388,-480.0,0.0003589,9]
[388305743,1759068654398,-218.36930793,0.0003589,9]
[388305744,1759068654407,-677.52,0.0003589,9]
[388305745,1759068654416,-1781.81,0.0003589,9]
[388305746,1759068654426,-480.0,0.0003589,9]
[388305747,1759068654435,-480.0,0.0003589,9]
[388305748,1759068654444,-1475.03,0.0003589,9]
[388305749,1759068654453,-1986.35,0.0003589,9]
[388305750,1759068654463,-1024.67,0.0003589,9]
[388305751,1759068654472,-480.0,0.0003589,9]
[388305752,1759068654481,-9000.0,0.0003589,30]
[388305753,1759068654490,-151.0,0.0003589,30]
[388305754,1759068654500,-480.0,0.0003589,9]
[388305755,1759068654509,-151.0,0.0003589,30]
[388305756,1759068654518,-9000.0,0.0003589,30]
[388305757,1759068654527,-9000.0,0.0003589,30]
[388305758,1759068654537,-151.0,0.0003589,30]
[388305759,1759068654546,-480.0,0.0003589,9]
[388305760,1759068654555,-9000.0,0.0003589,30]
[388305761,1759068654565,-151.0,0.0003589,30]
[388305762,1759068654574,-2224.04,0.0003589,9]
[388305763,1759068654583,-9000.0,0.0003589,30]
[388305764,1759068654596,-480.0,0.0003589,9]
[388305765,1759068654605,-9000.0,0.0003589,30]
[388305766,1759068654614,-480.0,0.0003589,9]
[388305767,1759068654624,-480.0,0.0003589,9]
[388305768,1759068654634,-9000.0,0.0003589,30]
[388305769,1759068654643,-4230.19,0.0003589,9]
[388305770,1759068654652,-1899.47,0.0003589,9]
[388305771,1759068654662,-9000.0,0.0003589,30]
[388305772,1759068654673,-481.47998856,0.0003589,9]
[388305773,1759068654682,-480.0,0.0003589,9]
[388305774,1759068654691,-480.0,0.0003589,9]
[388305775,1759068654700,-480.0,0.0003589,9]
[388305776,1759068654709,-2625.78,0.0003589,9]
[388305777,1759068654718,-480.0,0.0003589,9]
[388305778,1759068654727,-1701.51,0.0003589,9]
[388305779,1759068654736,-480.0,0.0003589,9]
[388305780,1759068654745,-555.63,0.0003589,9]
[388305781,1759068654754,-4315.32,0.0003589,9]
[388305782,1759068654763,-766.72,0.0003589,9]
[388305783,1759068654772,-189.53154129,0.0003589,9]
[388305784,1759068655866,-596.52,0.00035616,9]
[388305785,1759068655876,-323.84845871,0.0003589,9]
[388305786,1759068655885,-2676.22,0.0003589,9]
[388305787,1759068655895,-3680.23,0.0003589,9]
[388305788,1759068655904,-480.0,0.0003589,9]
[388305789,1759068655913,-480.0,0.0003589,9]
[388305790,1759068655922,-480.0,0.0003589,9]
[388305791,1759068655932,-480.0,0.0003589,9]
[388305792,1759068655941,-480.0,0.0003589,9]
[388305793,1759068655950,-480.0,0.0003589,9]
[388305794,1759068655959,-1199.17,0.0003589,9]
[388305795,1759068655968,-1096.04,0.0003589,9]
[388305796,1759068655977,-480.0,0.0003589,9]
[388305797,1759068655987,-669.82,0.0003589,9]
[388305798,1759068655996,-480.0,0.0003589,9]
[388305799,1759068656006,-550.1,0.0003589,9]
[388305800,1759068656015,-480.0,0.0003589,9]
[388305801,1759068656025,-5771.08,0.0003589,9]
[388305802,1759068656035,-480.0,0.0003589,9]
[388305803,1759068656045,-1030.32,0.0003589,9]
[388305804,1759068656055,-1116.74,0.0003589,9]
[388305805,1759068656063,-480.0,0.0003589,9]
[388305806,1759068656073,-719.19,0.0003589,9]
[388305807,1759068656082,-480.0,0.0003589,9]
[388305808,1759068656091,-941.46,0.0003589,9]
[388305809,1759068656102,-902.24,0.0003589,9]
[388305810,1759068656112,-9162.48,0.0003589,9]
[388305811,1759068656122,-480.0,0.0003589,9]
[388305812,1759068656132,-480.0,0.0003589,9]
[388305813,1759068656141,-3202.49,0.0003589,9]
[388305814,1759068656150,-480.0,0.0003589,9]
[388305815,1759068656159,-480.0,0.0003589,9]
[388305816,1759068656169,-487.85524876,0.0003589,9]
[388305817,1759068656178,-480.0,0.0003589,9]
[388305818,1759068656188,-480.0,0.0003589,9]
[388305819,1759068656198,-480.0,0.0003589,9]
[388305820,1759068656208,-480.0,0.0003589,9]
[388305821,1759068656218,-480.76713058,0.0003589,9]
[388305822,1759068656227,-480.0,0.0003589,9]
[388305823,1759068656236,-480.0,0.0003589,9]
[388305824,1759068656246,-4051.83,0.0003589,9]
[388305825,1759068656255,-1094.06,0.0003589,9]
[388305826,1759068656264,-480.0,0.0003589,9]
[388305827,1759068656273,-1909.08,0.0003589,9]
[388305828,1759068656282,-800.84,0.0003589,9]
[388305829,1759068656292,-3848.32,0.0003589,9]
[388305830,1759068656301,-480.0,0.0003589,9]
[388305831,1759068656311,-480.0,0.0003589,9]
[388305832,1759068656320,-613.52,0.0003589,9]
[388305833,1759068656330,-1482.22,0.0003589,9]
[388305834,1759068656339,-1451.08,0.0003589,9]
[388305835,1759068656349,-480.0,0.0003589,9]
[388305836,1759068656358,-1070.79,0.0003589,9]
[388305837,1759068656366,-996.79,0.0003589,9]
[388305838,1759068656375,-480.0,0.0003589,9]
[388305839,1759068656385,-480.0,0.0003589,9]
[388305840,1759068656394,-480.0,0.0003589,9]
[388305841,1759068656404,-1099.87,0.0003589,9]
[388305842,1759068656414,-480.0,0.0003589,9]
[388305843,1759068656423,-521.91039347,0.0003589,9]
[388305844,1759068656433,-9570.51,0.0003589,9]
[388305845,1759068656442,-4305.51,0.0003589,9]
[388305846,1759068656450,-248.50770926,0.0003589,9]
[388305847,1759068656459,-480.0,0.0003589,9]
[388305848,1759068656468,-480.0,0.0003589,9]
[388305849,1759068656477,-480.0,0.0003589,9]
[388305850,1759068656486,-480.0,0.0003589,9]
[388305851,1759068656495,-480.0,0.0003589,9]
[388305852,1759068656505,-480.0,0.0003589,9]
[388305853,1759068656514,-2509.13,0.0003589,9]
[388305854,1759068656523,-927.64,0.0003589,9]
[388305855,1759068656532,-480.0,0.0003589,9]
[388305856,1759068656541,-2815.64,0.0003589,9]
[388305857,1759068656549,-480.0,0.0003589,9]
[388305858,1759068656558,-480.0,0.0003589,9]
[388305859,1759068656567,-524.79,0.0003589,9]
[388305860,1759068656575,-1142.03,0.0003589,9]
[388305861,1759068656584,-552.37,0.0003589,9]
[388305862,1759068656595,-480.0,0.0003589,9]
[388305863,1759068656603,-1156.14,0.0003589,9]
[388305864,1759068656612,-1882.54,0.0003589,9]
[388305865,1759068656622,-868.8,0.0003589,9]
[388305866,1759068656633,-2188.71,0.0003589,9]
[388305867,1759068656642,-1528.64,0.0003589,9]
[388305868,1759068656651,-2087.73,0.0003589,9]
[388305869,1759068656660,-480.0,0.0003589,9]
[388305870,1759068656671,-424.06488717,0.0003589,9]
[388305871,1759068656680,-480.0,0.0003589,9]
[388305872,1759068656689,-480.0,0.0003589,9]
[388305873,1759068656698,-1284.61,0.0003589,9]
[388305874,1759068656707,-989.93,0.0003589,9]
[388305875,1759068656715,-665.69,0.0003589,9]
[388305876,1759068656724,-588.18,0.0003589,9]
[388305877,1759068656734,-729.11,0.0003589,9]
[388305878,1759068656743,-981.44,0.0003589,9]
[388305879,1759068656753,-480.0,0.0003589,9]
[388305880,1759068656762,-480.0,0.0003589,9]
[388305881,1759068656771,-480.0,0.0003589,9]
[388305882,1759068656780,-704.86,0.0003589,9]
[388305883,1759068656789,-480.0,0.0003589,9]
[388305884,1759068656798,-480.0,0.0003589,9]
[388305885,1759068656808,-10297.24,0.0003589,9]
[388305886,1759068656817,-519.61,0.0003589,9]
[388305887,1759068656826,-480.0,0.0003589,9]
[388305888,1759068656836,-867.04,0.0003589,9]
[388305889,1759068656844,-596.52,0.0003589,9]
[388305890,1759068656853,-151.0,0.000359,13]
[388305891,1759068656862,-160.0,0.000359,2]
[388305892,1759068656871,-167.64657561,0.00035923,7]
[388305893,1759068656880,-286.94555854,0.00036,30]
[388305894,1759068656889,-200.0,0.00036,120]
[388305895,1759068656898,-248.72,0.00036,2]
[388305896,1759068656909,-100000.0,0.00036,24]
[388305897,1759068656918,-7000.0,0.00036,5]
[388305898,1759068656927,-1380.03,0.00036,30]
[388305899,1759068656936,-1000.0,0.00036,30]
[388305900,1759068656947,-1000.0,0.00036,30]
[388305901,1759068656958,-1000.0,0.00036,30]
[388305902,1759068656967,-1000.0,0.00036,30]
[388305903,1759068656977,-1000.0,0.00036,30]
[388305904,1759068656986,-1000.0,0.00036021,5]
[388305905,1759068656995,-352.43479558,0.00036036,2]
[388305906,1759068657005,-348.0,0.00036036,2]
[388305907,1759068657014,-265.0,0.00036048,2]
[388305908,1759068657023,-500.0,0.00036049,5]
[388305909,1759068657032,-633.0,0.00036078,2]
[388305910,1759068657041,-199.0,0.00036142,17]
[388305911,1759068657050,-532.24,0.00036164,9]
[388305912,1759068657060,-480.0,0.00036164,9]
[388305913,1759068657069,-480.0,0.00036164,9]
[388305914,1759068657078,-480.0,0.00036164,9]
[388305915,1759068657088,-494.45,0.00036164,9]
[388305916,1759068657097,-1111.76,0.00036164,9]
[388305917,1759068657105,-480.0,0.00036164,9]
[388305918,1759068657114,-480.0,0.00036164,9]
[388305919,1759068657123,-480.0,0.00036164,9]
[388305920,1759068657132,-480.0,0.00036164,9]
[388305921,1759068657142,-480.0,0.00036164,9]
[388305922,1759068657151,-480.0,0.00036164,9]
[388305923,1759068657160,-1058.1,0.00036164,9]
[388305924,1759068657169,-480.0,0.00036164,9]
[388305925,1759068657178,-480.0,0.00036164,9]
[388305926,1759068657187,-480.0,0.00036164,9]
[388305927,1759068657196,-480.0,0.00036164,9]
[388305928,1759068657205,-480.0,0.00036164,9]
[388305929,1759068657214,-480.0,0.00036164,9]
[388305930,1759068657223,-386.32239703,0.00036164,9]
[388305931,1759068657231,-485.76217538,0.00036164,9]
[388305932,1759068657240,-697.47,0.00036164,9]
[388305933,1759068657249,-480.0,0.00036164,9]
[388305934,1759068657258,-480.0,0.00036164,9]
[388305935,1759068657268,-397.31119337,0.00036164,9]
[388305936,1759068657277,-480.0,0.00036164,9]
[388305937,1759068657286,-480.0,0.00036164,9]
[388305938,1759068657296,-741.99,0.00036164,9]
[388305939,1759068657306,-480.0,0.00036164,9]
[388305940,1759068657315,-480.0,0.00036164,9]
[388305941,1759068657325,-858.36,0.00036164,9]
[388305942,1759068657334,-822.6,0.00036164,9]
[388305943,1759068657345,-480.0,0.00036164,9]
[388305944,1759068657354,-480.0,0.00036164,9]
[388305945,1759068657364,-1051.22,0.00036164,9]
[388305946,1759068657373,-1485.76,0.00036164,9]
[388305947,1759068657384,-480.0,0.00036164,9]
[388305948,1759068657394,-480.0,0.00036164,9]
[388305949,1759068657404,-480.0,0.00036164,9]
[388305950,1759068657414,-480.0,0.00036164,9]
[388305951,1759068657424,-895.12,0.00036164,9]
[388305952,1759068657435,-480.0,0.00036164,9]
[388305953,1759068657445,-935.48,0.00036164,9]
[388305954,1759068657454,-480.0,0.00036164,9]
[388305955,1759068657464,-480.0,0.00036164,9]
[388305956,1759068657473,-679.79,0.00036164,9]
[388305957,1759068657483,-480.0,0.00036164,9]
[388305958,1759068657493,-444.81860454,0.00036164,9]
[388305959,1759068657503,-480.0,0.00036164,9]
[388305960,1759068657512,-480.0,0.00036164,9]
[388305961,1759068657521,-480.0,0.00036164,9]
[388305962,1759068657530,-555.42,0.00036164,9]
[388305963,1759068657717,-1095.61,0.00036164,9]
[388305964,1759068657727,-894.02,0.00036164,9]
[388305965,1759068657737,-480.0,0.00036164,9]
[388305966,1759068657746,-807.63,0.00036164,9]
[388305967,1759068657756,-480.0,0.00036164,9]
[388305968,1759068657766,-1264.54,0.00036164,9]
[388305969,1759068657775,-480.0,0.00036164,9]
[388305970,1759068657785,-480.0,0.00036164,9]
[388305971,1759068657795,-628.23,0.00036164,9]
[388305972,1759068657805,-1369.84,0.00036164,9]
[388305973,1759068657814,-480.0,0.00036164,9]
[388305974,1759068657823,-480.0,0.00036164,9]
[388305975,1759068657832,-695.93,0.00036164,9]
[388305976,1759068657841,-937.44,0.00036164,9]
[388305977,1759068657851,-480.0,0.00036164,9]
[388305978,1759068657860,-480.0,0.00036164,9]
[388305979,1759068657870,-480.0,0.00036164,9]
[388305980,1759068657879,-480.0,0.00036164,9]
[388305981,1759068657890,-1029.98,0.00036164,9]
[388305982,1759068657899,-397.98382936,0.00036164,9]
[388305983,1759068657909,-485.63714302,0.00036164,9]
[388305984,1759068657919,-480.0,0.00036164,9]
[388305985,1759068657928,-480.0,0.00036164,9]
[388305986,1759068657937,-150.39056161,0.00036164,9]
[388305987,1759068657947,-588.86,0.00036164,9]
[388305988,1759068657956,-480.0,0.00036164,9]
[388305989,1759068657966,-480.0,0.00036164,9]
[388305990,1759068657975,-909.18,0.00036164,9]
[388305991,1759068657985,-480.0,0.00036164,9]
[388305992,1759068657995,-755.1,0.00036164,9]
[388305993,1759068658011,-480.0,0.00036164,9]
[388305994,1759068658020,-480.0,0.00036164,9]
[388305995,1759068658029,-488.76,0.00036164,9]
[388305996,1759068658039,-480.0,0.00036164,9]
[388305997,1759068658048,-682.23,0.00036164,9]
[388305998,1759068658057,-480.0,0.00036164,9]
[388305999,1759068658065,-480.0,0.00036164,9]
[388306000,1759068658076,-480.0,0.00036164,9]
[388306001,1759068658086,-480.0,0.00036164,7]
[388306002,1759068658096,-480.0,0.00036164,9]
[388306003,1759068658105,-480.0,0.00036164,9]
[388306004,1759068658115,-480.0,0.00036164,9]
[388306005,1759068658125,-929.27,0.00036164,9]
[388306006,1759068658135,-557.42,0.00036164,9]
[388306007,1759068658144,-480.0,0.00036164,9]
[388306008,1759068658154,-1236.66,0.00036164,9]
[388306009,1759068658164,-480.0,0.00036164,9]
[388306010,1759068658173,-952.91,0.00036164,9]
[388306011,1759068658182,-480.0,0.00036164,9]
[388306012,1759068658192,-1826.96,0.00036164,9]
[388306013,1759068658201,-480.0,0.00036164,9]
[388306014,1759068658210,-520.0,0.00036164,3]
[388306015,1759068658219,-732.29,0.00036164,9]
[388306016,1759068658228,-480.0,0.00036164,9]
[388306017,1759068658237,-686.79,0.00036164,9]
[388306018,1759068658246,-480.0,0.00036164,9]
[388306019,1759068658255,-480.0,0.00036164,9]
[388306020,1759068658264,-480.0,0.00036164,9]
[388306021,1759068658274,-480.0,0.00036164,9]
[388306022,1759068658283,-486.7,0.00036164,9]
[388306023,1759068658293,-480.0,0.00036164,9]
[388306024,1759068658302,-480.0,0.00036164,9]
[388306025,1759068658311,-480.0,0.00036164,9]
[388306026,1759068658321,-177.49791654,0.00036164,9]
[388306027,1759068658330,-480.0,0.00036164,9]
[388306028,1759068658339,-480.0,0.00036164,9]
[388306029,1759068658349,-480.0,0.00036164,9]
[388306030,1759068658358,-480.0,0.00036164,9]
[388306031,1759068658368,-753.55,0.00036164,9]
[388306032,1759068658380,-1094.08,0.00036164,9]
[388306033,1759068658390,-480.0,0.00036164,9]
[388306034,1759068658400,-480.0,0.00036164,9]
[388306035,1759068658409,-480.0,0.00036164,7]
[388306036,1759068658419,-790.51,0.00036164,9]
[388306037,1759068658428,-480.0,0.00036164,9]
[388306038,1759068658437,-922.3,0.00036164,9]
[388306039,1759068658446,-480.0,0.00036164,9]
[388306040,1759068658455,-484.46,0.00036164,9]
[388306041,1759068658463,-1023.9,0.00036164,9]
[388306042,1759068658472,-588.86,0.00036164,9]
[388306043,1759068658482,-480.0,0.00036164,9]
[388306044,1759068658491,-3664.67,0.00036164,9]
[388306045,1759068658500,-1137.49,0.00036164,9]
[388306046,1759068658509,-3664.67,0.00036164,9]
[388306047,1759068658518,-880.52,0.00036164,9]
[388306048,1759068658527,-480.0,0.00036164,9]
[388306049,1759068658536,-1004.71,0.00036164,9]
[388306050,1759068658545,-545.01,0.00036164,9]
[388306051,1759068658554,-666.41,0.00036164,9]
[388306052,1759068658563,-480.0,0.00036164,9]
[388306053,1759068658572,-480.0,0.00036164,9]
[388306054,1759068658581,-480.0,0.00036164,9]
[388306055,1759068658594,-572.46,0.00036164,9]
[388306056,1759068658603,-977.1,0.00036164,9]
[388306057,1759068658613,-480.0,0.00036164,9]
[388306058,1759068658622,-480.0,0.00036164,9]
[388306059,1759068658632,-785.61,0.00036164,9]
[388306060,1759068658641,-480.0,0.00036164,9]
[388306061,1759068658650,-480.0,0.00036164,9]
[388306062,1759068658659,-648.41,0.00036164,9]
[388306063,1759068658671,-480.0,0.00036164,9]
[388306064,1759068658680,-480.0,0.00036164,9]
[388306065,1759068658689,-928.28,0.00036164,9]
[388306066,1759068658698,-480.0,0.00036164,9]
[388306067,1759068658707,-853.18,0.00036164,9]
[388306068,1759068658717,-480.0,0.00036164,9]
[388306069,1759068658727,-480.0,0.00036164,9]
[388306070,1759068658736,-665.05,0.00036164,9]
[388306071,1759068658745,-1241.38,0.00036164,9]
[388306072,1759068658754,-552.11,0.00036164,9]
[388306073,1759068658763,-480.0,0.00036164,9]
[388306074,1759068658772,-612.80976594,0.00036164,9]
[388306075,1759068658781,-1103.08,0.00036164,9]
[388306076,1759068658790,-3083.2,0.00036164,9]
[388306077,1759068658799,-480.0,0.00036164,9]
[388306078,1759068658808,-564.29,0.00036164,9]
[388306079,1759068658817,-480.0,0.00036164,9]
[388306080,1759068658826,-480.0,0.00036164,9]
[388306081,1759068658835,-1141.94,0.00036164,9]
[388306082,1759068658844,-604.8760821,0.00036164,9]
[388306083,1759068658853,-480.0,0.00036164,9]
[388306084,1759068658862,-480.0,0.00036164,9]
[388306085,1759068658871,-1605.71,0.00036164,9]
[388306086,1759068658880,-480.0,0.00036164,9]
[388306087,1759068658888,-480.0,0.00036164,9]
[388306088,1759068658897,-480.0,0.00036164,9]
[388306089,1759068658907,-498.14,0.00036164,9]
[388306090,1759068658916,-714.51,0.00036164,9]
[388306091,1759068658926,-1075.99,0.00036164,9]
[388306092,1759068658935,-1023.31,0.00036164,9]
[388306093,1759068658944,-480.0,0.00036164,9]
[388306094,1759068658954,-618.74,0.00036164,9]
[388306095,1759068658964,-480.0,0.00036164,9]
[388306096,1759068658972,-480.0,0.00036164,9]
[388306097,1759068658982,-480.0,0.00036164,9]
[388306098,1759068658991,-480.0,0.00036164,9]
[388306099,1759068659000,-754.29,0.00036164,9]
[388306100,1759068659010,-480.0,0.00036164,9]
[388306101,1759068659018,-480.0,0.00036164,9]
[388306102,1759068659028,-480.0,0.00036164,9]
[388306103,1759068659037,-845.64,0.00036164,9]
[388306104,1759068659046,-480.0,0.00036164,9]
[388306105,1759068659055,-975.02,0.00036164,9]
[388306106,1759068659065,-884.24,0.00036164,9]
[388306107,1759068659074,-447.39811165,0.00036164,9]
[388306108,1759068659083,-637.7,0.00036164,9]
[388306109,1759068659092,-1118.16,0.00036164,9]
[388306110,1759068659101,-765.23,0.00036164,9]
[388306111,1759068659111,-480.0,0.00036164,9]
[388306112,1759068659120,-480.0,0.00036164,9]
[388306113,1759068659129,-596.33,0.00036164,9]
[388306114,1759068659138,-843.09,0.00036164,9]
[388306115,1759068659147,-914.5,0.00036164,9]
[388306116,1759068659156,-843.73,0.00036164,9]
[388306117,1759068659166,-979.56,0.00036164,9]
[388306118,1759068659175,-2040.62,0.00036164,9]
[388306119,1759068659184,-846.09,0.00036164,9]
[388306120,1759068659193,-481.75097172,0.00036164,9]
[388306121,1759068659202,-480.0,0.00036164,9]
[388306122,1759068659211,-1028.35,0.00036164,9]
[388306123,1759068659220,-480.0,0.00036164,9]
[388306124,1759068659230,-480.0,0.00036164,9]
[388306125,1759068659239,-1744.06,0.00036164,9]
[388306126,1759068659248,-655.99,0.00036164,9]
[388306127,1759068659258,-480.0,0.00036164,9]
[388306128,1759068659267,-1073.98,0.00036164,9]
[388306129,1759068659276,-658.99,0.00036164,9]
[388306130,1759068659285,-480.0,0.00036164,9]
[388306131,1759068659294,-480.0,0.00036164,9]
[388306132,1759068659303,-480.0,0.00036164,9]
[388306133,1759068659312,-539.38,0.00036164,9]
[388306134,1759068659321,-480.0,0.00036164,9]
[388306135,1759068659331,-798.9,0.00036164,9]
[388306136,1759068659339,-480.0,0.00036164,9]
[388306137,1759068659348,-480.0,0.00036164,9]